bitfinex-derivatives/quotes_SOLF0:USTF0_20251026
["timestamp","ask_amount","ask_price","bid_price","bid_amount"]
[1761456541968,3.94709072,193.31,193.28,2.76]
[1761456542264,2.77,193.33,193.28,2.76]
[1761456542462,3.94683364,193.32,193.28,2.76]
[1761456542662,3.94683364,193.31,193.28,2.76]
[1761456542857,2.77,193.33,193.28,2.76]
[1761456543058,3.94683364,193.32,193.28,2.76]
[1761456543264,3.94683364,193.31,193.28,2.76]
[1761456543462,2.77,193.33,193.28,2.76]
[1761456543663,3.94665982,193.32,193.28,2.76]
[1761456543963,3.94665982,193.31,193.28,2.76]
[1761456544161,2.77,193.33,193.28,2.76]
[1761456544363,3.94651264,193.32,193.28,2.76]
[1761456544565,3.94651264,193.31,193.28,2.76]
[1761456544765,2.77,193.33,193.28,2.76]
[1761456544965,3.94651251,193.32,193.28,2.76]
[1761456545163,3.94651251,193.31,193.28,2.76]
[1761456545362,2.77,193.33,193.28,2.76]
[1761456545660,3.94638786,193.32,193.28,2.76]
[1761456545860,3.94638786,193.31,193.28,2.76]
[1761456546062,2.77,193.33,193.28,2.76]
[1761456546266,3.94638786,193.32,193.28,2.76]
[1761456546563,2.77,193.33,193.28,2.76]
[1761456546764,3.94628315,193.32,193.28,2.76]
[1761456546967,2.77,193.33,193.28,2.76]
[1761456547268,3.94628315,193.32,193.28,2.76]
[1761456547463,2.77,193.33,193.28,2.76]
[1761456547766,3.94619644,193.32,193.28,2.76]
[1761456547968,2.77,193.33,193.28,2.76]
[1761456548267,3.94619644,193.32,193.28,2.76]
[1761456548456,2.77,193.33,193.28,2.76]
[1761456548655,3.94607538,193.32,193.28,2.76]
[1761456548854,2.77,193.33,193.28,2.76]
[1761456549058,3.94607538,193.32,193.28,2.76]
[1761456549258,2.77,193.33,193.28,2.76]
[1761456549456,3.94584013,193.32,193.28,2.76]
[1761456549660,2.77,193.33,193.28,2.76]
[1761456549860,3.94585297,193.32,193.28,2.76]
[1761456550061,2.77,193.33,193.28,2.76]
[1761456550356,3.94585297,193.32,193.28,2.76]
[1761456550557,2.77,193.33,193.28,2.76]
[1761456550761,3.94565043,193.32,193.28,2.76]
[1761456550958,2.77,193.33,193.28,2.76]
[1761456551162,3.94565043,193.32,193.28,2.76]
[1761456551363,2.77,193.33,193.28,2.76]
[1761456551560,3.94547868,193.32,193.28,2.76]
[1761456551769,2.77,193.33,193.28,2.76]
[1761456551972,3.94547868,193.32,193.28,2.76]
[1761456552172,2.77,193.33,193.28,2.76]
[1761456552474,3.94090767,193.32,193.28,2.76]
[1761456552668,2.82,193.36,193.28,2.76]
[1761456552970,3.94066028,193.35,193.28,2.76]
[1761456553173,3.94066028,193.34,193.28,2.76]
[1761456553373,2.82,193.36,193.28,2.76]
[1761456553671,3.93974852,193.35,193.28,2.76]
[1761456553873,3.93974852,193.34,193.28,2.76]
[1761456554075,2.82,193.36,193.28,2.76]
[1761456554276,3.93974852,193.35,193.28,2.76]
[1761456554475,3.93974852,193.34,193.28,2.76]
[1761456554664,2.82,193.36,193.28,2.76]
[1761456554864,3.93913618,193.35,193.28,2.76]
[1761456555068,3.93913618,193.34,193.28,2.76]
[1761456555270,2.82,193.36,193.28,2.76]
[1761456555466,3.9386207,193.35,193.28,2.76]
[1761456555676,3.9386207,193.34,193.28,2.76]
[1761456555873,2.82,193.38,193.29,2.76]
[1761456556075,3.9384992,193.37,193.29,2.76]
[1761456556287,3.9384992,193.36,193.29,2.76]
[1761456556478,2.82,193.38,193.3,4.6553]
[1761456556679,3.93688211,193.37,193.31,2.76]
[1761456556872,3.93688211,193.36,193.31,2.76]
[1761456557178,2.82,193.38,193.31,2.76]
[1761456557478,3.93587574,193.37,193.31,2.76]
[1761456557778,2.82,193.38,193.31,2.76]
[1761456557978,3.93581605,193.37,193.31,2.76]
[1761456558178,2.82,193.38,193.31,2.76]
[1761456558380,3.93499341,193.37,193.31,2.76]
[1761456558681,2.82,193.38,193.31,2.76]
[1761456558881,3.93496161,193.37,193.31,2.76]
[1761456559082,2.82,193.38,193.31,2.76]
[1761456559278,3.93496161,193.37,193.31,2.76]
[1761456559478,2.82,193.38,193.31,2.76]
[1761456559679,3.93424081,193.37,193.31,2.76]
[1761456559977,2.82,193.38,193.31,2.76]
[1761456560182,3.93423951,193.37,193.31,2.76]
[1761456560482,2.82,193.38,193.31,2.76]
[1761456560679,3.93362007,193.37,193.31,2.76]
[1761456560880,2.82,193.38,193.31,2.76]
[1761456561075,3.93362007,193.37,193.31,2.76]
[1761456561283,2.82,193.38,193.31,2.76]
[1761456561583,3.93308984,193.37,193.31,2.76]
[1761456561881,2.82,193.38,193.31,2.76]
[1761456562082,3.93308984,193.37,193.31,2.76]
[1761456562381,2.82,193.38,193.31,2.76]
[1761456562579,3.93257323,193.37,193.31,2.76]
[1761456562777,2.82,193.38,193.31,2.76]
[1761456563082,3.93257323,193.37,193.31,2.76]
[1761456563277,2.82,193.38,193.31,2.76]
[1761456563580,3.93218484,193.37,193.31,2.76]
[1761456563785,2.82,193.38,193.31,2.76]
[1761456564082,6.75218484,193.37,193.31,2.76]
[1761456564285,2.82,193.37,193.31,2.76]
[1761456569486,1.50611629,193.37,193.31,2.76]
[1761456569781,2.82,193.36,193.31,2.76]
[1761456573186,3.93227994,193.35,193.31,2.76]
[1761456573388,2.82,193.34,193.31,2.76]
[1761456578804,2.82,193.34,193.28,2.66]
[1761456605033,2.82,193.34,193.29,2.83]
[1761456606534,2.82,193.38,193.3,1.50611629]
[1761456606736,3.88381758,193.37,193.31,2.83]
[1761456606927,6.70381758,193.36,193.31,2.83]
[1761456607227,6.70381758,193.35,193.31,2.83]
[1761456607433,2.82,193.35,193.31,2.83]
[1761456609839,4.83808804,193.39,193.31,2.83]
[1761456609840,6.52462804,193.34,193.31,2.83]
[1761456610041,2.64,193.34,193.31,2.83]
[1761456633657,2.64,193.37,193.31,2.83]
[1761456633859,6.52804233,193.36,193.31,2.83]
[1761456634054,3.88804233,193.35,193.31,2.83]
[1761456634358,6.52804233,193.34,193.31,2.83]
[1761456634558,2.64,193.34,193.31,2.83]
[1761456642063,3.89365896,193.33,193.31,2.83]
[1761456642263,2.64,193.34,193.31,2.83]
[1761456642565,3.893659,193.33,193.31,2.83]
[1761456642764,2.64,193.34,193.31,2.83]
[1761456643063,3.893659,193.33,193.31,2.83]
[1761456643262,2.64,193.34,193.31,2.83]
[1761456643464,3.89365905,193.33,193.31,2.83]
[1761456643662,2.64,193.34,193.31,2.83]
[1761456643863,3.89365905,193.33,193.31,2.83]
[1761456644061,2.64,193.34,193.31,2.83]
[1761456644263,3.89366435,193.33,193.31,2.83]
[1761456644459,2.64,193.34,193.31,2.83]
[1761456644661,3.89365909,193.33,193.31,2.83]
[1761456644858,2.64,193.34,193.31,2.83]
[1761456645054,3.89365909,193.33,193.31,2.83]
[1761456645260,2.64,193.34,193.31,2.83]
[1761456645464,3.89365502,193.33,193.31,2.83]
[1761456645665,2.64,193.34,193.31,2.83]
[1761456645866,3.89365502,193.33,193.31,2.83]
[1761456646069,2.64,193.34,193.31,2.83]
[1761456646270,3.89365502,193.33,193.31,2.83]
[1761456646463,2.64,193.34,193.31,2.83]
[1761456646767,3.89365508,193.33,193.31,2.83]
[1761456646964,2.64,193.34,193.31,2.83]
[1761456647168,3.89365508,193.33,193.31,2.83]
[1761456647368,2.64,193.34,193.31,2.83]
[1761456647668,3.89365514,193.33,193.31,2.83]
[1761456647968,2.64,193.34,193.31,2.83]
[1761456648168,3.89365514,193.33,193.31,2.83]
[1761456648369,2.64,193.34,193.31,2.83]
[1761456648570,3.8936552,193.33,193.31,2.83]
[1761456648770,2.64,193.34,193.31,2.83]
[1761456648970,3.8936552,193.33,193.31,2.83]
[1761456649169,2.64,193.34,193.31,2.83]
[1761456649368,3.8936552,193.33,193.31,2.83]
[1761456649567,2.64,193.34,193.31,2.83]
[1761456649767,3.89365526,193.33,193.31,2.83]
[1761456649968,2.64,193.34,193.31,2.83]
[1761456650163,3.89365526,193.33,193.31,2.83]
[1761456650368,2.64,193.34,193.31,2.83]
[1761456650569,3.89365532,193.33,193.31,2.83]
[1761456650771,2.64,193.34,193.31,2.83]
[1761456651071,3.89365532,193.33,193.31,2.83]
[1761456651265,2.64,193.34,193.31,2.83]
[1761456651564,3.89365947,193.33,193.31,2.83]
[1761456651766,2.64,193.34,193.31,2.83]
[1761456651970,3.89365538,193.33,193.31,2.83]
[1761456652268,2.64,193.34,193.31,2.83]
[1761456652469,3.89377319,193.33,193.31,2.83]
[1761456652671,2.64,193.34,193.31,2.83]
[1761456652871,3.89377319,193.33,193.31,2.83]
[1761456653059,2.64,193.34,193.31,2.83]
[1761456653265,6.68377319,193.33,193.31,2.83]
[1761456653560,2.79,193.33,193.31,2.83]
[1761456658080,2.79,193.33,193.28,2.76]
[1761456658288,2.79,193.31,193.28,2.76]
[1761456671198,2.83,193.36,193.28,2.76]
[1761456671496,2.83,193.34,193.28,2.76]
[1761456671697,2.83,193.32,193.28,2.76]
[1761456678705,2.83,193.32,193.26,2.7]
[1761456679003,2.83,193.3,193.24,2.7]
[1761456680104,2.83,193.28,193.24,2.7]
[1761456685608,2.83,193.28,193.22,4.20756067]
[1761456686701,2.83,193.28,193.22,2.7]
[1761456695106,2.83,193.28,193.2,2.7]
[1761456696713,4.33756067,193.28,193.2,2.7]
[1761456696912,2.83,193.27,193.2,2.7]
[1761456698314,3.88463947,193.27,193.2,2.7]
[1761456698516,2.82,193.26,193.2,2.7]
[1761456701315,2.82,193.26,193.2,4.20756067]
[1761456703919,2.82,193.26,193.2,2.7]
[1761456704324,2.82,193.25,193.2,2.7]
[1761456713926,2.82,193.25,193.17,1.50756067]
[1761456714129,2.82,193.25,193.18,2.79]
[1761456715130,2.82,193.25,193.21,2.79]
[1761456722737,2.84,193.28,193.24,2.8]
[1761456722935,2.84,193.32,193.24,2.8]
[1761456723139,2.84,193.3,193.24,2.8]
[1761456723337,2.84,193.28,193.24,2.8]
[1761456726243,3.8970385,193.27,193.24,2.8]
[1761456726444,2.84,193.27,193.24,2.8]
[1761456734843,2.87,193.3,193.25,1.50756067]
[1761456735044,3.90125832,193.29,193.26,2.85]
[1761456735235,2.87,193.3,193.26,2.85]
[1761456735441,3.90121329,193.29,193.26,2.85]
[1761456735744,2.87,193.3,193.26,2.85]
[1761456735945,3.90121264,193.29,193.26,2.85]
[1761456736147,2.87,193.29,193.26,2.85]
[1761456738746,4.4741265,193.33,193.26,2.85]
[1761456738943,3.90065127,193.32,193.26,2.85]
[1761456739146,2.87,193.3,193.26,2.85]
[1761456739341,2.87,193.33,193.28,2.85]
[1761456739542,6.77033134,193.32,193.28,2.85]
[1761456739849,3.90033134,193.31,193.28,2.85]
[1761456740143,2.87,193.32,193.28,2.85]
[1761456740346,6.76942691,193.31,193.28,2.85]
[1761456740649,2.87,193.31,193.28,2.85]
[1761456776281,3.90634678,193.3,193.28,2.85]
[1761456776493,2.77,193.3,193.28,2.85]
[1761456782399,3.91095042,193.29,193.28,2.85]
[1761456786693,2.71,193.28,193.25,2.87]
[1761456809325,1.50741497,193.31,193.25,2.87]
[1761456809524,6.55606123,193.3,193.25,2.87]
[1761456809725,6.55606123,193.29,193.25,2.87]
[1761456809924,2.65,193.29,193.25,2.87]
[1761456832147,2.82,193.36,193.27,2.76]
[1761456832345,2.82,193.34,193.27,2.76]
[1761456832734,2.82,193.34,193.31,2.76]
[1761456840944,2.82,193.37,193.31,2.76]
[1761456841144,2.83,193.35,193.31,2.76]
[1761456841650,2.83,193.38,193.31,2.76]
[1761456841850,2.83,193.41,193.33,2.78]
[1761456842052,3.89057117,193.4,193.33,2.78]
[1761456842241,2.83,193.38,193.33,2.78]
[1761456846352,2.83,193.38,193.3,8.94261497]
[1761456846955,2.83,193.38,193.31,2.78]
[1761456853559,2.83,193.38,193.33,2.72]
[1761456859361,2.86,193.43,193.33,2.72]
[1761456859563,2.86,193.41,193.33,2.72]
[1761456859762,2.86,193.4,193.33,2.72]
[1761456860065,2.86,193.4,193.35,2.72]
[1761456883583,2.67,193.43,193.35,2.72]
[1761456883770,6.55980993,193.42,193.35,2.72]
[1761456884068,3.88980993,193.41,193.35,2.72]
[1761456884266,2.67,193.42,193.35,2.72]
[1761456884469,4.84433644,193.45,193.35,2.72]
[1761456884470,6.56043343,193.41,193.35,2.72]
[1761456884680,2.67,193.41,193.35,2.72]
[1761456891087,2.67,193.44,193.35,2.72]
[1761456891287,2.67,193.42,193.35,2.72]
[1761456891487,3.89151344,193.41,193.35,2.72]
[1761456891682,2.67,193.42,193.35,2.72]
[1761456891883,3.89171986,193.41,193.35,2.72]
[1761456892084,2.67,193.42,193.35,2.72]
[1761456892381,3.89171986,193.41,193.35,2.72]
[1761456892582,2.67,193.42,193.35,2.72]
[1761456892781,3.8919607,193.41,193.35,2.72]
[1761456892982,2.67,193.42,193.35,2.72]
[1761456893182,3.8919607,193.41,193.35,2.72]
[1761456893383,2.67,193.42,193.35,2.72]
[1761456893694,3.89224541,193.41,193.35,2.72]
[1761456893901,2.67,193.42,193.35,2.72]
[1761456894101,3.89224541,193.41,193.35,2.72]
[1761456894400,2.67,193.42,193.35,2.72]
[1761456894596,6.56257862,193.41,193.35,2.72]
[1761456894802,2.67,193.41,193.35,2.72]
[1761456896303,3.8935159,193.4,193.35,2.72]
[1761456896505,2.67,193.41,193.35,2.72]
[1761456896702,3.8935159,193.4,193.35,2.72]
[1761456896906,2.67,193.41,193.35,2.72]
[1761456897107,3.8935159,193.4,193.35,2.72]
[1761456897306,2.67,193.41,193.35,2.72]
[1761456897604,3.89412329,193.4,193.35,2.72]
[1761456897805,2.67,193.41,193.35,2.72]
[1761456898009,3.89412329,193.4,193.35,2.72]
[1761456898203,2.67,193.41,193.35,2.72]
[1761456898506,3.89436637,193.4,193.35,2.72]
[1761456898700,2.67,193.41,193.35,2.72]
[1761456898903,3.89436637,193.4,193.35,2.72]
[1761456899103,2.67,193.41,193.35,2.72]
[1761456899305,2.67,193.39,193.35,2.72]
[1761456901510,2.84,193.43,193.35,2.72]
[1761456901815,2.84,193.41,193.35,2.72]
[1761456902008,6.73549567,193.4,193.35,2.72]
[1761456902207,2.84,193.43,193.35,2.72]
[1761456902411,3.89589586,193.42,193.35,2.72]
[1761456902613,2.84,193.45,193.35,2.72]
[1761456902801,6.73548855,193.44,193.35,2.72]
[1761456903117,3.89548855,193.43,193.37,2.75]
[1761456903301,3.89548855,193.42,193.38,2.75]
[1761456903611,2.84,193.45,193.38,2.75]
[1761456903813,3.89496858,193.44,193.38,2.75]
[1761456904012,3.89496858,193.43,193.38,2.75]
[1761456904212,2.84,193.43,193.38,2.75]
[1761456913425,2.77,193.41,193.35,2.7]
[1761456914822,2.77,193.43,193.36,2.7]
[1761456915508,2.77,193.43,193.37,2.7]
[1761456917616,2.77,193.45,193.37,2.7]
[1761456919123,2.77,193.45,193.38,2.7]
[1761456922327,2.77,193.45,193.39,2.7]
[1761456922627,6.45078405,193.55,193.39,2.7]
[1761456922628,2.77,193.47,193.39,2.7]
[1761456923128,7.4215,193.47,193.4,2.7]
[1761456927328,7.4215,193.47,193.41,2.7]
[1761456927329,2.77,193.47,193.41,2.7]
[1761456928122,3.88216687,193.5,193.41,2.7]
[1761456928324,2.77,193.5,193.42,2.7]
[1761456930832,2.77,193.5,193.44,2.7]
[1761456931319,2.77,193.49,193.44,2.7]
[1761456932829,2.77,193.49,193.47,2.7]
[1761456933724,2.77,193.54,193.47,2.7]
[1761456933921,2.77,193.52,193.47,2.7]
[1761456936435,2.65371644,193.52,193.47,2.7]
[1761456944940,2.65371644,193.52,193.49,4.24428563]
[1761456945140,2.88,193.55,193.5,2.74]
[1761456945439,2.88,193.55,193.51,2.74]
[1761456945635,2.88,193.55,193.47,37.82428563]
[1761456945839,2.88,193.55,193.48,2.74]
[1761456946141,2.88,193.55,193.47,33.58]
[1761456947235,2.88,193.55,193.47,36.32]
[1761456947538,2.88,193.55,193.47,2.74]
[1761456950038,2.88,193.55,193.44,4.24428563]
[1761456950441,2.88,193.55,193.44,1.50428563]
[1761456950642,2.88,193.55,193.45,2.74]
[1761456954638,2.88,193.54,193.45,2.74]
[1761456956243,2.88,193.53,193.44,2.74]
[1761456957347,2.88,193.53,193.46,1.50428563]
[1761456957740,3.88188847,193.53,193.46,1.50428563]
[1761456958039,3.88188847,193.53,193.44,2.74]
[1761456958040,2.88,193.52,193.43,1.50428563]
[1761456958546,2.88,193.52,193.43,4.24428563]
[1761456959848,2.88,193.51,193.43,4.24428563]
[1761456961839,2.88,193.51,193.43,2.74]
[1761456962039,3.88728982,193.5,193.43,1.50428563]
[1761456962244,2.8,193.49,193.43,1.50428563]
[1761456965042,2.8,193.49,193.4,4.22428563]
[1761456965241,3.89017757,193.48,193.4,2.72]
[1761456965445,2.8,193.47,193.4,2.72]
[1761456966053,2.8,193.47,193.39,1.50428563]
[1761456967054,2.8,193.45,193.39,1.50428563]
[1761456967250,2.8,193.45,193.37,2.72]
[1761456967451,2.8,193.43,193.37,2.72]
[1761456969255,2.8,193.43,193.36,1.50428563]
[1761456969448,2.8,193.43,193.36,4.23428563]
[1761456970054,2.8,193.43,193.36,2.73]
[1761456970248,2.82,193.42,193.32,2.73]
[1761456970448,2.82,193.41,193.32,4.23428563]
[1761456971547,2.82,193.4,193.31,1.50428563]
[1761456977852,2.82,193.4,193.31,4.23428563]
[1761456978253,2.82,193.4,193.34,1.50428563]
[1761456978552,2.82,193.4,193.36,1.50428563]
[1761456979653,2.82,193.4,193.37,2.73]
[1761456980456,2.82,193.4,193.34,2.73]
[1761456980756,2.82,193.4,193.35,1.50428563]
[1761456980961,2.82,193.4,193.35,4.23428563]
[1761456981359,2.82,193.4,193.36,2.73]
[1761456982356,2.82,193.4,193.36,1.50428563]
[1761456982953,2.82,193.4,193.36,4.23428563]
[1761456984562,2.82,193.4,193.37,2.73]
[1761456985066,2.82,193.47,193.37,2.73]
[1761456985265,2.82,193.47,193.39,1.50428563]
[1761456985567,2.82,193.46,193.39,1.50428563]
[1761456986960,2.82,193.46,193.44,1.50428563]
[1761456989861,2.82,193.49,193.44,4.23428563]
[1761456990761,2.82,193.49,193.44,2.73]
[1761456992367,2.82,193.48,193.44,2.73]
[1761456996066,2.82,193.47,193.44,2.73]
[1761456999666,3.88609009,193.47,193.44,2.73]
[1761456999867,2.88,193.46,193.44,2.73]
[1761457005174,6.76902747,193.46,193.44,2.73]
[1761457005373,2.88,193.46,193.44,2.73]
[1761457006477,6.77143449,193.46,193.44,2.73]
[1761457006678,2.88,193.46,193.44,2.73]
[1761457007276,2.88,193.52,193.44,2.73]
[1761457007480,3.89263226,193.51,193.44,2.73]
[1761457009179,2.88,193.5,193.44,2.73]
[1761457027296,2.8,193.56,193.44,2.73]
[1761457027500,6.69270496,193.55,193.44,2.73]
[1761457027699,2.8,193.55,193.44,2.73]
[1761457028200,2.8,193.55,193.46,2.35073498]
[1761457028403,2.8,193.55,193.47,2.83]
[1761457030096,2.86,193.58,193.5,2.83]
[1761457030295,3.89182387,193.57,193.5,2.83]
[1761457030496,3.89182387,193.56,193.5,2.83]
[1761457030701,3.89182387,193.57,193.5,2.83]
[1761457033007,6.75182387,193.57,193.5,2.83]
[1761457033211,2.86,193.57,193.5,2.83]
[1761457034406,6.7470034,193.57,193.5,2.83]
[1761457034608,2.86,193.57,193.5,2.83]
[1761457038009,6.74489994,193.6,193.5,2.83]
[1761457038204,2.86,193.58,193.5,2.83]
[1761457039502,3.88410448,193.58,193.5,2.83]
[1761457039708,2.86,193.57,193.5,2.83]
[1761457043607,2.86,193.62,193.51,2.83]
[1761457043807,2.86,193.6,193.51,2.83]
[1761457044107,3.88334887,193.6,193.51,2.83]
[1761457044306,2.86,193.59,193.51,2.83]
[1761457044508,2.86,193.59,193.52,2.83]
[1761457045108,6.74334887,193.59,193.52,2.83]
[1761457045304,2.86,193.59,193.52,2.83]
[1761457046416,2.86,193.59,193.52,4.6499]
[1761457046716,2.86,193.59,193.53,2.83]
[1761457047716,3.88408834,193.63,193.53,2.83]
[1761457047920,2.86,193.63,193.53,2.83]
[1761457049013,2.86,193.62,193.56,2.83]
[1761457057738,2.86,193.64,193.56,2.83]
[1761457058434,3.88133803,193.64,193.56,2.83]
[1761457058638,2.68,193.63,193.56,2.83]
[1761457061538,2.68,193.63,193.57,2.71]
[1761457065134,2.68,193.62,193.57,2.71]
[1761457069331,2.68,193.61,193.57,2.71]
[1761457079244,2.68,193.61,193.54,2.71]
[1761457079245,3.89281905,193.6,193.54,2.71]
[1761457079451,2.68,193.58,193.54,2.71]
[1761457082550,2.68,193.58,193.48,1.50247212]
[1761457082551,2.68,193.58,193.52,2.83]
[1761457092155,3.90112544,193.57,193.52,2.83]
[1761457092456,2.68,193.57,193.52,2.83]
[1761457131992,2.68,193.57,193.52,4.65]
[1761457132194,2.68,193.57,193.53,2.84]
[1761457134394,4.80942591,193.61,193.53,2.84]
[1761457134589,2.81,193.59,193.53,2.84]
[1761457134791,6.71563746,193.58,193.53,2.84]
[1761457135092,6.71563746,193.57,193.53,2.84]
[1761457135389,2.81,193.57,193.53,2.84]
[1761457140097,4.80942591,193.61,193.53,2.84]
[1761457140294,2.81,193.59,193.53,2.84]
[1761457140491,6.71560594,193.58,193.53,2.84]
[1761457140692,3.90560594,193.57,193.53,2.84]
[1761457140893,2.81,193.57,193.53,2.84]
[1761457154317,2.83,193.6,193.54,2.69]
[1761457154516,6.74356959,193.59,193.54,2.69]
[1761457154716,6.74356959,193.58,193.54,2.69]
[1761457154916,2.83,193.58,193.54,2.69]
[1761457156220,2.83,193.58,193.55,2.69]
[1761457164924,2.83,193.58,193.54,69.5195]
[1761457165124,2.83,193.58,193.55,2.69]
[1761457168025,2.83,193.62,193.55,2.69]
[1761457168226,6.74047787,193.61,193.55,2.69]
[1761457168425,6.74047787,193.6,193.55,2.69]
[1761457168627,3.91047787,193.59,193.55,2.69]
[1761457168926,2.83,193.6,193.55,2.69]
[1761457169126,3.91042879,193.59,193.55,2.69]
[1761457169322,2.83,193.6,193.55,2.69]
[1761457169523,3.91036415,193.59,193.55,2.69]
[1761457169722,2.83,193.6,193.55,2.69]
[1761457169923,3.91036415,193.59,193.56,2.69]
[1761457170225,2.83,193.6,193.56,2.69]
[1761457170427,3.91013961,193.59,193.56,2.69]
[1761457170625,2.83,193.6,193.56,2.69]
[1761457170825,3.91013961,193.59,193.56,2.69]
[1761457171018,2.83,193.6,193.56,2.69]
[1761457171222,3.91011883,193.59,193.56,2.69]
[1761457171420,2.83,193.6,193.56,2.69]
[1761457171620,3.91003823,193.59,193.56,2.69]
[1761457171822,2.83,193.6,193.56,2.69]
[1761457172129,3.91003823,193.59,193.56,2.69]
[1761457172326,2.83,193.6,193.56,2.69]
[1761457172525,3.9099517,193.59,193.56,2.69]
[1761457172732,2.83,193.6,193.56,2.69]
[1761457172930,3.9099517,193.59,193.56,2.69]
[1761457173124,2.83,193.6,193.56,2.69]
[1761457173324,3.90993688,193.59,193.56,2.69]
[1761457173624,2.83,193.63,193.56,2.69]
[1761457173824,6.73977277,193.62,193.56,2.69]
[1761457174030,3.90977277,193.61,193.56,2.69]
[1761457174326,3.90977277,193.6,193.56,2.69]
[1761457174532,2.83,193.62,193.56,2.69]
[1761457174723,6.73964812,193.61,193.56,2.69]
[1761457174926,3.90964812,193.6,193.56,2.69]
[1761457175125,2.83,193.63,193.56,2.69]
[1761457175326,6.73963907,193.62,193.56,2.69]
[1761457175527,6.73963907,193.61,193.56,2.69]
[1761457175723,3.90963907,193.6,193.56,2.69]
[1761457175924,2.83,193.61,193.56,2.69]
[1761457176127,3.90954306,193.6,193.56,2.69]
[1761457176328,2.83,193.61,193.56,2.69]
[1761457176529,3.90945573,193.6,193.56,2.69]
[1761457176734,2.83,193.61,193.56,2.69]
[1761457176936,3.90940541,193.6,193.56,2.69]
[1761457177133,2.83,193.61,193.56,2.69]
[1761457177335,3.90940337,193.6,193.56,2.69]
[1761457177535,2.83,193.61,193.56,4.649]
[1761457177832,3.90919272,193.6,193.57,2.69]
[1761457178040,2.83,193.61,193.57,2.69]
[1761457178226,3.90919403,193.6,193.57,2.69]
[1761457178426,2.83,193.61,193.57,2.69]
[1761457178630,3.90901296,193.6,193.57,2.69]
[1761457178835,2.83,193.61,193.57,2.69]
[1761457179134,3.90901296,193.6,193.57,2.69]
[1761457179335,2.83,193.61,193.57,2.69]
[1761457179532,3.90886281,193.6,193.57,2.69]
[1761457179732,2.83,193.61,193.57,2.69]
[1761457179938,3.90886281,193.6,193.57,2.69]
[1761457180137,2.83,193.61,193.57,2.69]
[1761457180337,3.90887355,193.6,193.57,2.69]
[1761457180539,2.83,193.61,193.57,2.69]
[1761457180731,6.50873981,193.6,193.57,2.69]
[1761457180927,2.6,193.6,193.57,2.69]
[1761457185742,2.6,193.64,193.57,2.69]